{"text_format":"3","workbook":"xlsx","n_sheets":1,"sheets":["Calcolatore prestiti"],"not_rendered":{"defined_names":10},"read":"whole","date_system":"1900"}

{"sheet":"Calcolatore prestiti","index":0,"n_rows":22,"n_cols":13,"rows_kept":22,"merged":[[1,1,1,3],[1,6,2,8],[1,11,2,12],[2,1,2,3],[6,5,6,6],[7,5,7,6],[10,2,10,5],[10,6,10,8],[10,9,10,12],[18,2,18,12]]}
[]
[null,"CALCOLATORE PRESTITI ",{"$nulls":4},{"v":50000,"d":"€ 50,000"},{"$nulls":4},{"v":40673,"d":"4067300.00%"}]
[null,"UNIVERSITARI "]
[]
[null," È consigliabile che il totale delle rate mensili di restituzione del prestito non superi l'8% dello stipendio annuale del primo anno."]
[]
[null,null,"Il pagamento mensile corrente combinato è:",null,null,{"$f":"PrestitiUniversitari[[#Totals],[Pagamento mensile corrente]]","v":{"v":328.58590726058833,"d":"€ 328.59"}},null,null,"Il pagamento mensile pianificato combinato è:",{"$nulls":3},{"$f":"PrestitiUniversitari[[#Totals],[Pagamento pianificato]]","v":{"v":328.58590726058833,"d":"€ 328.59"}}]
[null,null,"Percentuale del reddito mensile:",null,null,{"$f":"PrestitiUniversitari[[#Totals],[Pagamento mensile corrente]]/StipendioMensileStimato","v":{"v":0.07886061774254119,"d":"7.89%"}},null,null,"  Percentuale del reddito mensile:",{"$nulls":3},{"$f":"PrestitiUniversitari[[#Totals],[Pagamento pianificato]]/StipendioMensileStimato","v":{"v":0.07886061774254119,"d":"7.89%"}}]
[]
[]
[null,null,"INFORMAZIONI GENERALI SUI PRESTITI",{"$nulls":3},"DATI DI RESTITUZIONE PRESTITI",null,null,"DETTAGLI PAGAMENTI"]
[null,null,"N. prestito","Prestatore","Importo prestito","Tasso d'interesse annuale","Data di inizio","Durata (anni)","Data di fine","Pagamento mensile corrente","Interesse totale","Pagamento pianificato","Pagamento annuale"]
[null,null,"10998M88","Prestatore 1",{"v":10000,"d":"€ 10,000.00"},{"v":0.05,"d":"5.00%"},{"v":40634,"d":"4063400.00%"},10,{"$f":"IF(AND(PrestitiUniversitari[[#This Row],[Data di inizio]]>0,PrestitiUniversitari[[#This Row],[Durata (anni)]]>0),EDATE(PrestitiUniversitari[[#This Row],[Data di inizio]],PrestitiUniversitari[[#This Row],[Durata (anni)]]*12),\"\")","v":{"v":44287,"d":"4428700.00%"}},{"$f":"IF(AND(InizioPrestitoLOggi,COUNT(PrestitiUniversitari[[#This Row],[Importo prestito]:[Durata (anni)]])=4,PrestitiUniversitari[[#This Row],[Data di inizio]]<TODAY()),PMT(PrestitiUniversitari[[#This Row],[Tasso d''interesse annuale]]/12,PrestitiUniversitari[[#This Row],[Durata (anni)]]*12,-PrestitiUniversitari[[#This Row],[Importo prestito]],0,0),\"\")","v":{"v":106.06551523907524,"d":"€ 106.07"}},{"$f":"IFERROR((PrestitiUniversitari[[#This Row],[Pagamento pianificato]]*(PrestitiUniversitari[[#This Row],[Durata (anni)]]*12))-PrestitiUniversitari[[#This Row],[Importo prestito]],\"\")","v":{"v":2727.8618286890287,"d":"€ 2,727.86"}},{"$f":"IF(COUNTA(PrestitiUniversitari[[#This Row],[Importo prestito]:[Durata (anni)]])<>4,\"\",PMT(PrestitiUniversitari[[#This Row],[Tasso d''interesse annuale]]/12,PrestitiUniversitari[[#This Row],[Durata (anni)]]*12,-PrestitiUniversitari[[#This Row],[Importo prestito]],0,0))","v":{"v":106.06551523907524,"d":"€ 106.07"}},{"$f":"IFERROR(PrestitiUniversitari[[#This Row],[Pagamento pianificato]]*12,\"\")","v":{"v":1272.7861828689029,"d":"€ 1,272.79"}}]
[null,null,"20987N87","Prestatore 2",{"v":8000,"d":"€ 8,000.00"},{"v":0.05,"d":"5.00%"},{"v":40664,"d":"4066400.00%"},10,{"$f":"IF(AND(PrestitiUniversitari[[#This Row],[Data di inizio]]>0,PrestitiUniversitari[[#This Row],[Durata (anni)]]>0),EDATE(PrestitiUniversitari[[#This Row],[Data di inizio]],PrestitiUniversitari[[#This Row],[Durata (anni)]]*12),\"\")","v":{"v":44317,"d":"4431700.00%"}},{"$f":"IF(AND(InizioPrestitoLOggi,COUNT(PrestitiUniversitari[[#This Row],[Importo prestito]:[Durata (anni)]])=4,PrestitiUniversitari[[#This Row],[Data di inizio]]<TODAY()),PMT(PrestitiUniversitari[[#This Row],[Tasso d''interesse annuale]]/12,PrestitiUniversitari[[#This Row],[Durata (anni)]]*12,-PrestitiUniversitari[[#This Row],[Importo prestito]],0,0),\"\")","v":{"v":84.85241219126019,"d":"€ 84.85"}},{"$f":"IFERROR((PrestitiUniversitari[[#This Row],[Pagamento pianificato]]*(PrestitiUniversitari[[#This Row],[Durata (anni)]]*12))-PrestitiUniversitari[[#This Row],[Importo prestito]],\"\")","v":{"v":2182.289462951223,"d":"€ 2,182.29"}},{"$f":"IF(COUNTA(PrestitiUniversitari[[#This Row],[Importo prestito]:[Durata (anni)]])<>4,\"\",PMT(PrestitiUniversitari[[#This Row],[Tasso d''interesse annuale]]/12,PrestitiUniversitari[[#This Row],[Durata (anni)]]*12,-PrestitiUniversitari[[#This Row],[Importo prestito]],0,0))","v":{"v":84.85241219126019,"d":"€ 84.85"}},{"$f":"IFERROR(PrestitiUniversitari[[#This Row],[Pagamento pianificato]]*12,\"\")","v":{"v":1018.2289462951222,"d":"€ 1,018.23"}}]
[null,null,"36785LM","Prestatore 3",{"v":6000,"d":"€ 6,000.00"},{"v":0.045,"d":"4.50%"},{"v":40969,"d":"4096900.00%"},10,{"$f":"IF(AND(PrestitiUniversitari[[#This Row],[Data di inizio]]>0,PrestitiUniversitari[[#This Row],[Durata (anni)]]>0),EDATE(PrestitiUniversitari[[#This Row],[Data di inizio]],PrestitiUniversitari[[#This Row],[Durata (anni)]]*12),\"\")","v":{"v":44621,"d":"4462100.00%"}},{"$f":"IF(AND(InizioPrestitoLOggi,COUNT(PrestitiUniversitari[[#This Row],[Importo prestito]:[Durata (anni)]])=4,PrestitiUniversitari[[#This Row],[Data di inizio]]<TODAY()),PMT(PrestitiUniversitari[[#This Row],[Tasso d''interesse annuale]]/12,PrestitiUniversitari[[#This Row],[Durata (anni)]]*12,-PrestitiUniversitari[[#This Row],[Importo prestito]],0,0),\"\")","v":{"v":62.18304525420918,"d":"€ 62.18"}},{"$f":"IFERROR((PrestitiUniversitari[[#This Row],[Pagamento pianificato]]*(PrestitiUniversitari[[#This Row],[Durata (anni)]]*12))-PrestitiUniversitari[[#This Row],[Importo prestito]],\"\")","v":{"v":1461.9654305051017,"d":"€ 1,461.97"}},{"$f":"IF(COUNTA(PrestitiUniversitari[[#This Row],[Importo prestito]:[Durata (anni)]])<>4,\"\",PMT(PrestitiUniversitari[[#This Row],[Tasso d''interesse annuale]]/12,PrestitiUniversitari[[#This Row],[Durata (anni)]]*12,-PrestitiUniversitari[[#This Row],[Importo prestito]],0,0))","v":{"v":62.18304525420918,"d":"€ 62.18"}},{"$f":"IFERROR(PrestitiUniversitari[[#This Row],[Pagamento pianificato]]*12,\"\")","v":{"v":746.1965430505102,"d":"€ 746.20"}}]
[null,null,"765R43","Prestatore 4",{"v":4000,"d":"€ 4,000.00"},{"v":0.05,"d":"5.00%"},{"v":41030,"d":"4103000.00%"},5,{"$f":"IF(AND(PrestitiUniversitari[[#This Row],[Data di inizio]]>0,PrestitiUniversitari[[#This Row],[Durata (anni)]]>0),EDATE(PrestitiUniversitari[[#This Row],[Data di inizio]],PrestitiUniversitari[[#This Row],[Durata (anni)]]*12),\"\")","v":{"v":42856,"d":"4285600.00%"}},{"$f":"IF(AND(InizioPrestitoLOggi,COUNT(PrestitiUniversitari[[#This Row],[Importo prestito]:[Durata (anni)]])=4,PrestitiUniversitari[[#This Row],[Data di inizio]]<TODAY()),PMT(PrestitiUniversitari[[#This Row],[Tasso d''interesse annuale]]/12,PrestitiUniversitari[[#This Row],[Durata (anni)]]*12,-PrestitiUniversitari[[#This Row],[Importo prestito]],0,0),\"\")","v":{"v":75.48493457604374,"d":"€ 75.48"}},{"$f":"IFERROR((PrestitiUniversitari[[#This Row],[Pagamento pianificato]]*(PrestitiUniversitari[[#This Row],[Durata (anni)]]*12))-PrestitiUniversitari[[#This Row],[Importo prestito]],\"\")","v":{"v":529.0960745626244,"d":"€ 529.10"}},{"$f":"IF(COUNTA(PrestitiUniversitari[[#This Row],[Importo prestito]:[Durata (anni)]])<>4,\"\",PMT(PrestitiUniversitari[[#This Row],[Tasso d''interesse annuale]]/12,PrestitiUniversitari[[#This Row],[Durata (anni)]]*12,-PrestitiUniversitari[[#This Row],[Importo prestito]],0,0))","v":{"v":75.48493457604374,"d":"€ 75.48"}},{"$f":"IFERROR(PrestitiUniversitari[[#This Row],[Pagamento pianificato]]*12,\"\")","v":{"v":905.8192149125249,"d":"€ 905.82"}}]
[null,null,"Totali",null,{"$f":"SUBTOTAL(109,PrestitiUniversitari[Importo prestito])","v":{"v":28000,"d":"€ 28,000.00"}},{"$nulls":4},{"$f":"SUBTOTAL(109,PrestitiUniversitari[Pagamento mensile corrente])","v":{"v":328.58590726058833,"d":"€ 328.59"}},{"$f":"SUBTOTAL(109,PrestitiUniversitari[Interesse totale])","v":{"v":6901.212796707978,"d":"€ 6,901.21"}},{"$f":"SUBTOTAL(109,PrestitiUniversitari[Pagamento pianificato])","v":{"v":328.58590726058833,"d":"€ 328.59"}},{"$f":"SUBTOTAL(109,PrestitiUniversitari[Pagamento annuale])","v":{"v":3943.03088712706,"d":"€ 3,943.03"}}]
[null,null,"Medie",null,{"$f":"AVERAGE(PrestitiUniversitari[Importo prestito])","v":{"v":7000,"d":"€ 7,000.00"}},{"$f":"AVERAGE(PrestitiUniversitari[Tasso d''interesse annuale])","v":{"v":0.04875,"d":"4.88%"}},{"$nulls":4},{"$f":"AVERAGE(PrestitiUniversitari[Interesse totale])","v":{"v":1725.3031991769944,"d":"€ 1,725.30"}},null,{"$f":"AVERAGE(PrestitiUniversitari[Pagamento annuale])","v":{"v":985.757721781765,"d":"€ 985.76"}}]
[]
[{"$nulls":10},"Restituzione prestito consolidato totale:",null,{"$f":"PrestitiUniversitari[[#Totals],[Importo prestito]]+PrestitiUniversitari[[#Totals],[Interesse totale]]","v":{"v":34901.21279670798,"d":"€ 34,901.21"}}]
[]
[{"$nulls":10},"Reddito mensile stimato post-laurea:",null,{"$f":"(StipendioAnnualeStimato/12)","v":{"v":4166.666666666667,"d":"€ 4,166.67"}}]